[Event "*** Titled Tuesday Blitz"]
[Site "Chess.com"]
[Date "2019.09.03"]
[Round "9"]
[White "Al_Shima"]
[Black "JussupowFan"]
[Result "1-0"]
[WhiteElo "2443"]
[BlackElo "2196"]
[TimeControl "180+2"]
[EndTime "17:06:36 PDT"]
[Termination "Al_Shima won by resignation"]

1. b3 {[%clk 0:03:01.9]} 1... e5 {[%clk 0:02:59.6]} 2. Bb2 {[%clk 0:03:03.4]}
2... Nc6 {[%clk 0:03:01]} 3. e3 {[%clk 0:03:04.9]} 3... Nf6 {[%clk 0:03:00.9]}
4. Bb5 {[%clk 0:03:05.5]} 4... e4 {[%clk 0:03:01]} 5. d3 {[%clk 0:03:03.6]} 5...
exd3 {[%clk 0:02:54.9]} 6. cxd3 {[%clk 0:03:01.1]} 6... d5 {[%clk 0:02:55.1]} 7.
Bxc6+ {[%clk 0:03:01.2]} 7... bxc6 {[%clk 0:02:55.6]} 8. Ne2 {[%clk 0:03:01.7]}
8... Bd6 {[%clk 0:02:49.5]} 9. Nbc3 {[%clk 0:02:55.6]} 9... O-O {[%clk
0:02:41.2]} 10. Rc1 {[%clk 0:02:55]} 10... Qe7 {[%clk 0:02:36.3]} 11. Na4 {[%clk
0:02:53]} 11... c5 {[%clk 0:02:37]} 12. Qc2 {[%clk 0:02:53]} 12... Nd7 {[%clk
0:02:33.8]} 13. Ba3 {[%clk 0:02:53.5]} 13... Ba6 {[%clk 0:02:30.9]} 14. Kd2
{[%clk 0:02:44.3]} 14... c4 {[%clk 0:02:16.8]} 15. Bxd6 {[%clk 0:02:43.3]} 15...
Qxd6 {[%clk 0:02:14.9]} 16. d4 {[%clk 0:02:31]} 16... c5 {[%clk 0:02:10.7]} 17.
Nxc5 {[%clk 0:02:29]} 17... Nxc5 {[%clk 0:02:10.6]} 18. dxc5 {[%clk 0:02:30.9]}
18... Qxc5 {[%clk 0:02:12.5]} 19. Nd4 {[%clk 0:02:31]} 19... Rac8 {[%clk
0:02:09.8]} 20. Qc3 {[%clk 0:02:28.3]} 20... Rfe8 {[%clk 0:02:05.8]} 21. b4
{[%clk 0:02:26.4]} 21... Qd6 {[%clk 0:02:04.1]} 22. Ke2 {[%clk 0:02:13.6]} 22...
Qg6 {[%clk 0:02:04.4]} 23. Kf1 {[%clk 0:02:08.9]} 23... Rcd8 {[%clk 0:02:02.5]}
24. Kg1 {[%clk 0:01:56.6]} 24... Bc8 {[%clk 0:02:02.7]} 25. h3 {[%clk
0:01:54.9]} 25... Bf5 {[%clk 0:01:59]} 26. Kh2 {[%clk 0:01:49.8]} 26... Be4
{[%clk 0:01:58.6]} 27. Rhg1 {[%clk 0:01:46.4]} 27... Re5 {[%clk 0:01:57.3]} 28.
Nc6 {[%clk 0:01:30]} 28... Qd6 {[%clk 0:01:46.2]} 29. Nxe5 {[%clk 0:01:21.2]}
29... f6 {[%clk 0:01:46.1]} 30. f4 {[%clk 0:01:21.9]} 30... fxe5 {[%clk
0:01:45.6]} 31. Qxe5 {[%clk 0:01:22.7]} 31... Qxe5 {[%clk 0:01:42]} 32. fxe5
{[%clk 0:01:23.4]} 32... Re8 {[%clk 0:01:42.9]} 33. Rgf1 {[%clk 0:01:14.5]}
33... Rxe5 {[%clk 0:01:43.2]} 34. Rc3 {[%clk 0:01:15.4]} 34... Rg5 {[%clk
0:01:41.5]} 35. Rf2 {[%clk 0:01:15.7]} 35... h5 {[%clk 0:01:39.6]} 36. a4 {[%clk
0:01:14.9]} 36... Rg6 {[%clk 0:01:38.2]} 37. b5 {[%clk 0:01:15.3]} 37... Rb6
{[%clk 0:01:38.9]} 38. Rb2 {[%clk 0:01:11]} 38... a6 {[%clk 0:01:33.3]} 39. Kg3
{[%clk 0:00:58.9]} 39... axb5 {[%clk 0:01:33]} 40. Rxb5 {[%clk 0:00:58.8]} 40...
Ra6 {[%clk 0:01:34.1]} 41. a5 {[%clk 0:00:59.6]} 41... Kf7 {[%clk 0:01:33.1]}
42. Rb7+ {[%clk 0:00:52.5]} 42... Kf6 {[%clk 0:01:33.7]} 43. Rb6+ {[%clk
0:00:53.5]} 43... Rxb6 {[%clk 0:01:34]} 44. axb6 {[%clk 0:00:55.4]} 44... d4
{[%clk 0:01:21.2]} 45. exd4 {[%clk 0:00:56]} 45... Bd5 {[%clk 0:01:19.6]} 46.
Rxc4 {[%clk 0:00:56.6]} 1-0

[Event "*** Titled Tuesday Blitz"]
[Site "Chess.com"]
[Date "2019.09.03"]
[Round "9"]
[White "joshdaruca"]
[Black "Kumi29"]
[Result "1-0"]
[WhiteElo "2731"]
[BlackElo "2534"]
[TimeControl "180+2"]
[EndTime "17:07:22 PDT"]
[Termination "joshdaruca won by resignation"]

1. Nf3 {[%clk 0:03:01.9]} 1... e6 {[%clk 0:03:00.5]} 2. g3 {[%clk 0:03:02.8]}
2... b5 {[%clk 0:02:58.9]} 3. Bg2 {[%clk 0:03:03.4]} 3... Bb7 {[%clk 0:03:00.3]}
4. O-O {[%clk 0:03:04.9]} 4... Nf6 {[%clk 0:03:00.5]} 5. b3 {[%clk 0:03:06.8]}
5... d5 {[%clk 0:03:01.3]} 6. c4 {[%clk 0:03:07.8]} 6... bxc4 {[%clk 0:03:00.6]}
7. bxc4 {[%clk 0:03:09.7]} 7... dxc4 {[%clk 0:02:59.5]} 8. Na3 {[%clk
0:03:05.5]} 8... c3 {[%clk 0:02:51.2]} 9. d3 {[%clk 0:03:00.6]} 9... Be7 {[%clk
0:02:46.2]} 10. Rb1 {[%clk 0:02:52.6]} 10... Bc6 {[%clk 0:02:39.8]} 11. Qb3
{[%clk 0:02:39.1]} 11... Nbd7 {[%clk 0:02:34.3]} 12. Qxc3 {[%clk 0:02:39]} 12...
Bd5 {[%clk 0:02:35.8]} 13. e4 {[%clk 0:02:36]} 13... Nxe4 {[%clk 0:01:54.5]} 14.
dxe4 {[%clk 0:02:33.9]} 14... Bxe4 {[%clk 0:01:56.4]} 15. Nd4 {[%clk 0:02:17]}
15... Bxb1 {[%clk 0:01:45.2]} 16. Nc6 {[%clk 0:02:16.7]} 16... Qc8 {[%clk
0:01:43.1]} 17. Nxe7 {[%clk 0:02:16]} 17... Kxe7 {[%clk 0:01:42.4]} 18. Bxa8
{[%clk 0:02:13.8]} 18... Qxa8 {[%clk 0:01:43.3]} 19. Nxb1 {[%clk 0:02:13.1]}
19... Rb8 {[%clk 0:01:41]} 20. Ba3+ {[%clk 0:02:13.4]} 20... Ke8 {[%clk
0:01:39.3]} 21. Qxg7 {[%clk 0:02:13.7]} 21... c5 {[%clk 0:01:37.6]} 22. Qg8+
{[%clk 0:02:01.9]} 22... Ke7 {[%clk 0:01:34.7]} 23. Qg5+ {[%clk 0:02:03.3]}
23... Kf8 {[%clk 0:01:27.5]} 24. Bxc5+ {[%clk 0:02:03.8]} 24... Nxc5 {[%clk
0:01:28.7]} 25. Qxc5+ {[%clk 0:02:05.3]} 25... Kg8 {[%clk 0:01:30]} 26. Nc3
{[%clk 0:02:03.4]} 26... Rb2 {[%clk 0:01:26.4]} 27. Qg5+ {[%clk 0:02:02.9]}
27... Kf8 {[%clk 0:01:23.2]} 28. Qf6 {[%clk 0:01:50]} 28... Qb7 {[%clk
0:01:13.4]} 29. Qh8+ {[%clk 0:01:42.1]} 29... Ke7 {[%clk 0:01:14.1]} 30. Rd1
{[%clk 0:01:26.9]} 30... Qb6 {[%clk 0:01:08.1]} 31. Ne4 {[%clk 0:01:19.9]} 31...
Rb1 {[%clk 0:00:55.5]} 32. Qf6+ {[%clk 0:01:11.8]} 32... Kf8 {[%clk 0:00:53.1]}
33. Qh6+ {[%clk 0:01:12.8]} 33... Ke7 {[%clk 0:00:49.2]} 34. Qd2 {[%clk
0:01:07.7]} 34... Rxd1+ {[%clk 0:00:46.8]} 35. Qxd1 {[%clk 0:01:09.6]} 35... Qb4
{[%clk 0:00:42.8]} 36. Qe2 {[%clk 0:01:03.5]} 36... a5 {[%clk 0:00:39.6]} 37. h4
{[%clk 0:01:01.6]} 37... a4 {[%clk 0:00:39.5]} 38. Qc2 {[%clk 0:00:56.9]} 38...
Qe1+ {[%clk 0:00:33]} 39. Kg2 {[%clk 0:00:57.3]} 39... a3 {[%clk 0:00:33.2]} 40.
Qc7+ {[%clk 0:00:58.1]} 40... Kf8 {[%clk 0:00:32.9]} 41. Qc5+ {[%clk 0:00:57.8]}
41... Kg7 {[%clk 0:00:28.1]} 42. Qc3+ {[%clk 0:00:57.6]} 42... Qxc3 {[%clk
0:00:27.3]} 43. Nxc3 {[%clk 0:00:59.5]} 43... Kf6 {[%clk 0:00:28.9]} 44. Nb1
{[%clk 0:00:59.9]} 44... Ke5 {[%clk 0:00:30.3]} 45. Nxa3 {[%clk 0:01:01.8]}
45... Kd4 {[%clk 0:00:31.9]} 46. Nb1 {[%clk 0:01:02]} 1-0

[Event "*** Titled Tuesday Blitz"]
[Site "Chess.com"]
[Date "2019.09.03"]
[Round "9"]
[White "Bladel"]
[Black "DrMelekess"]
[Result "1-0"]
[WhiteElo "2637"]
[BlackElo "2701"]
[TimeControl "180+2"]
[EndTime "17:07:24 PDT"]
[Termination "Bladel won by resignation"]

1. e4 {[%clk 0:03:01.9]} 1... Nc6 {[%clk 0:02:34.3]} 2. Nf3 {[%clk 0:02:59.9]}
2... d5 {[%clk 0:02:29.2]} 3. exd5 {[%clk 0:02:54.1]} 3... Qxd5 {[%clk
0:02:31.1]} 4. Nc3 {[%clk 0:02:54.5]} 4... Qa5 {[%clk 0:02:29.7]} 5. d4 {[%clk
0:02:52.9]} 5... Bg4 {[%clk 0:02:29.9]} 6. Be2 {[%clk 0:02:46.8]} 6... O-O-O
{[%clk 0:02:25.3]} 7. Be3 {[%clk 0:02:47]} 7... e5 {[%clk 0:02:16.4]} 8. Nxe5
{[%clk 0:02:46.5]} 8... Bxe2 {[%clk 0:02:08.4]} 9. Qxe2 {[%clk 0:02:48.4]} 9...
Nxe5 {[%clk 0:02:07.8]} 10. dxe5 {[%clk 0:02:47.9]} 10... Qxe5 {[%clk
0:02:07.6]} 11. O-O {[%clk 0:02:44.5]} 11... Nf6 {[%clk 0:02:08]} 12. Qf3 {[%clk
0:02:45.1]} 12... Bd6 {[%clk 0:02:06.4]} 13. g3 {[%clk 0:02:43.7]} 13... a6
{[%clk 0:01:56.1]} 14. Rfe1 {[%clk 0:02:34.8]} 14... Rhe8 {[%clk 0:01:55.6]} 15.
Rad1 {[%clk 0:02:31.4]} 15... Qe6 {[%clk 0:01:26.4]} 16. Bd4 {[%clk 0:02:27.1]}
16... Qxe1+ {[%clk 0:01:23.2]} 17. Rxe1 {[%clk 0:02:29]} 17... Rxe1+ {[%clk
0:01:25.1]} 18. Kg2 {[%clk 0:02:30.9]} 18... Be7 {[%clk 0:01:05.9]} 19. Bxf6
{[%clk 0:02:28.7]} 19... Bxf6 {[%clk 0:01:04.7]} 20. Ne4 {[%clk 0:02:30.6]}
20... Bxb2 {[%clk 0:00:58.3]} 21. Qxf7 {[%clk 0:02:30.4]} 21... Kb8 {[%clk
0:00:51.9]} 22. Nc5 {[%clk 0:02:29.5]} 22... Ba3 {[%clk 0:00:12.3]} 23. Nxa6+
{[%clk 0:02:14.1]} 23... bxa6 {[%clk 0:00:11.8]} 24. Qb3+ {[%clk 0:02:15.5]}
24... Kc8 {[%clk 0:00:12.5]} 25. Qxa3 {[%clk 0:02:16.3]} 25... Re6 {[%clk
0:00:13.5]} 26. Qf3 {[%clk 0:02:14.3]} 26... Kb8 {[%clk 0:00:11.5]} 27. h4
{[%clk 0:02:13]} 27... Rf6 {[%clk 0:00:10.9]} 28. Qe4 {[%clk 0:02:12.4]} 28...
Rdd6 {[%clk 0:00:10.2]} 29. Qxh7 {[%clk 0:02:09.5]} 29... g6 {[%clk 0:00:11.3]}
30. h5 {[%clk 0:02:08.1]} 30... gxh5 {[%clk 0:00:11.3]} 31. Qxh5 {[%clk
0:02:10]} 31... Kb7 {[%clk 0:00:08.4]} 32. g4 {[%clk 0:02:05.7]} 32... Rd2
{[%clk 0:00:09.2]} 33. Qh4 {[%clk 0:02:03]} 33... Rf8 {[%clk 0:00:07.6]} 34. g5
{[%clk 0:02:02.3]} 34... Ka7 {[%clk 0:00:02.9]} 35. Qg3 {[%clk 0:01:46.2]} 35...
Rxc2 {[%clk 0:00:02.5]} 36. g6 {[%clk 0:01:42.5]} 36... Rc6 {[%clk 0:00:03.1]}
37. g7 {[%clk 0:01:39.8]} 37... Rg8 {[%clk 0:00:04.4]} 38. f4 {[%clk 0:01:39.2]}
38... Rf6 {[%clk 0:00:04.4]} 39. f5 {[%clk 0:01:32.7]} 39... Rf7 {[%clk
0:00:04.6]} 40. Qe3+ {[%clk 0:01:31.9]} 40... Kb7 {[%clk 0:00:03.8]} 41. Qb3+
{[%clk 0:01:29.1]} 41... Ka7 {[%clk 0:00:05]} 42. Qxf7 {[%clk 0:01:31]} 1-0

[Event "*** Titled Tuesday Blitz"]
[Site "Chess.com"]
[Date "2019.09.03"]
[Round "9"]
[White "juniortay"]
[Black "ALEXJR20"]
[Result "1-0"]
[WhiteElo "2416"]
[BlackElo "2231"]
[TimeControl "180+2"]
[EndTime "17:07:30 PDT"]
[Termination "juniortay won on time"]

1. e4 {[%clk 0:03:01.9]} 1... c5 {[%clk 0:02:59.5]} 2. Nf3 {[%clk 0:03:01.1]}
2... d6 {[%clk 0:02:58.9]} 3. d4 {[%clk 0:03:02.1]} 3... cxd4 {[%clk 0:03:00.8]}
4. Nxd4 {[%clk 0:03:03.6]} 4... Nf6 {[%clk 0:03:01.6]} 5. Nc3 {[%clk 0:03:04.9]}
5... a6 {[%clk 0:03:02.7]} 6. f4 {[%clk 0:03:06.4]} 6... e6 {[%clk 0:02:52.3]}
7. Nf3 {[%clk 0:03:06.8]} 7... Be7 {[%clk 0:02:51.8]} 8. Bd3 {[%clk 0:03:08.3]}
8... b5 {[%clk 0:02:51.4]} 9. a3 {[%clk 0:03:08.2]} 9... Nbd7 {[%clk 0:02:52.1]}
10. O-O {[%clk 0:03:09.4]} 10... Qc7 {[%clk 0:02:53]} 11. Qe1 {[%clk 0:03:10.4]}
11... O-O {[%clk 0:02:51.7]} 12. Kh1 {[%clk 0:03:11.2]} 12... Bb7 {[%clk
0:02:52.4]} 13. e5 {[%clk 0:03:11.3]} 13... Nd5 {[%clk 0:02:28.2]} 14. Ne4
{[%clk 0:03:01.1]} 14... dxe5 {[%clk 0:02:03]} 15. fxe5 {[%clk 0:02:54.1]} 15...
Nxe5 {[%clk 0:02:03.6]} 16. Nxe5 {[%clk 0:02:48.4]} 16... Qxe5 {[%clk
0:02:05.5]} 17. Bd2 {[%clk 0:02:46]} 17... Qh5 {[%clk 0:01:49.3]} 18. Rf3 {[%clk
0:02:36.5]} 18... f5 {[%clk 0:01:01.1]} 19. Rh3 {[%clk 0:02:22.2]} 19... Qg6
{[%clk 0:01:01.2]} 20. Rg3 {[%clk 0:02:15.6]} 20... Qf7 {[%clk 0:00:52.6]} 21.
Ng5 {[%clk 0:02:08.4]} 21... Bxg5 {[%clk 0:00:53.6]} 22. Bxg5 {[%clk 0:02:04.6]}
22... h6 {[%clk 0:00:51.5]} 23. Bxh6 {[%clk 0:02:04.8]} 23... g6 {[%clk
0:00:24.1]} 24. Qe5 {[%clk 0:01:54.7]} 24... Qf6 {[%clk 0:00:21.3]} 25. Qxf6
{[%clk 0:01:40.5]} 25... Rxf6 {[%clk 0:00:23.2]} 26. Bg5 {[%clk 0:01:32.9]}
26... Rf7 {[%clk 0:00:23]} 27. Re1 {[%clk 0:01:34.4]} 27... Re8 {[%clk
0:00:22.1]} 28. Rge3 {[%clk 0:01:33.9]} 28... Nc7 {[%clk 0:00:18.5]} 29. Bf4
{[%clk 0:01:31.5]} 29... Bc8 {[%clk 0:00:18.7]} 30. Be5 {[%clk 0:01:25]} 30...
Nd5 {[%clk 0:00:17.1]} 31. Rg3 {[%clk 0:01:21.8]} 31... Rg7 {[%clk 0:00:09.6]}
32. h4 {[%clk 0:01:20]} 32... Kf7 {[%clk 0:00:09.8]} 33. Bxg7 {[%clk 0:01:16.2]}
33... Kxg7 {[%clk 0:00:11.7]} 34. h5 {[%clk 0:01:17.8]} 34... Rh8 {[%clk
0:00:12.7]} 35. Rxg6+ {[%clk 0:01:15.6]} 35... Kf7 {[%clk 0:00:14.3]} 36. Rg5
{[%clk 0:01:15.8]} 36... Nf4 {[%clk 0:00:14.3]} 37. Kg1 {[%clk 0:01:14.8]} 37...
Kf6 {[%clk 0:00:11.3]} 38. Rg3 {[%clk 0:01:13.5]} 38... Rxh5 {[%clk 0:00:10.3]}
39. Kf2 {[%clk 0:01:08.9]} 39... Bb7 {[%clk 0:00:07.5]} 40. Bf1 {[%clk
0:01:08.3]} 40... e5 {[%clk 0:00:06]} 41. Rc3 {[%clk 0:01:07.8]} 41... Bd5
{[%clk 0:00:03.1]} 42. Rc5 {[%clk 0:01:07.2]} 42... Rg5 {[%clk 0:00:03.2]} 43.
g3 {[%clk 0:01:06.8]} 1-0

[Event "*** Titled Tuesday Blitz"]
[Site "Chess.com"]
[Date "2019.09.03"]
[Round "9"]
[White "Morscas"]
[Black "iLuusions"]
[Result "0-1"]
[WhiteElo "2261"]
[BlackElo "2584"]
[TimeControl "180+2"]
[EndTime "17:07:35 PDT"]
[Termination "iLuusions won by resignation"]

1. e4 {[%clk 0:03:01.9]} 1... c5 {[%clk 0:02:58.8]} 2. Nf3 {[%clk 0:03:03]} 2...
e6 {[%clk 0:03:00]} 3. b3 {[%clk 0:03:03.9]} 3... b6 {[%clk 0:02:55.6]} 4. Bd3
{[%clk 0:03:04.9]} 4... d6 {[%clk 0:02:55.3]} 5. O-O {[%clk 0:03:04.6]} 5... Bb7
{[%clk 0:02:54.6]} 6. Re1 {[%clk 0:03:04.4]} 6... Nf6 {[%clk 0:02:55.6]} 7. Bb2
{[%clk 0:03:02.2]} 7... Nbd7 {[%clk 0:02:56.6]} 8. a4 {[%clk 0:03:01.9]} 8... a6
{[%clk 0:02:57]} 9. Na3 {[%clk 0:03:02.9]} 9... Be7 {[%clk 0:02:55.5]} 10. Nc4
{[%clk 0:03:02.8]} 10... O-O {[%clk 0:02:56.2]} 11. e5 {[%clk 0:03:03.3]} 11...
dxe5 {[%clk 0:02:55.5]} 12. Nfxe5 {[%clk 0:03:04]} 12... Nxe5 {[%clk 0:02:44.7]}
13. Nxe5 {[%clk 0:03:04]} 13... Qd5 {[%clk 0:02:44.7]} 14. Bf1 {[%clk
0:03:02.5]} 14... Rfd8 {[%clk 0:02:41]} 15. Nc4 {[%clk 0:02:49.7]} 15... Qc6
{[%clk 0:02:36.8]} 16. Re3 {[%clk 0:02:50.6]} 16... Nd5 {[%clk 0:02:31.6]} 17.
Rg3 {[%clk 0:02:48.7]} 17... Bf6 {[%clk 0:02:32.6]} 18. Ne5 {[%clk 0:02:47.5]}
18... Qc7 {[%clk 0:02:31.7]} 19. Nc4 {[%clk 0:02:21.8]} 19... b5 {[%clk
0:02:19.8]} 20. Bxf6 {[%clk 0:02:21.7]} 20... Nxf6 {[%clk 0:02:18.9]} 21. Ne3
{[%clk 0:02:16.3]} 21... Ne4 {[%clk 0:02:16.1]} 22. axb5 {[%clk 0:02:13.4]}
22... axb5 {[%clk 0:01:46.4]} 23. Rxa8 {[%clk 0:02:11.9]} 23... Bxa8 {[%clk
0:01:47.6]} 24. Bxb5 {[%clk 0:02:12.7]} 24... Nxg3 {[%clk 0:01:45.2]} 25. hxg3
{[%clk 0:02:12.3]} 25... Qa5 {[%clk 0:01:44.4]} 26. Bd3 {[%clk 0:02:11.1]} 26...
Bc6 {[%clk 0:01:38.5]} 27. Nc4 {[%clk 0:02:00.6]} 27... Qa8 {[%clk 0:01:36.8]}
28. Qh5 {[%clk 0:01:55.3]} 28... g6 {[%clk 0:01:31.7]} 29. Qxc5 {[%clk
0:01:56.1]} 29... Bxg2 {[%clk 0:01:32.6]} 30. Ne5 {[%clk 0:01:39.5]} 30... Bd5
{[%clk 0:01:16]} 31. Ng4 {[%clk 0:01:31.5]} 31... Qa1+ {[%clk 0:01:13.9]} 32.
Bf1 {[%clk 0:01:32.5]} 32... Bf3 {[%clk 0:01:04]} 33. Qe7 {[%clk 0:01:25.4]}
33... Rf8 {[%clk 0:00:55]} 34. Nf6+ {[%clk 0:01:17.1]} 34... Kg7 {[%clk
0:00:53.9]} 35. Nd7 {[%clk 0:01:16.6]} 35... Ra8 {[%clk 0:00:51.3]} 36. Kh2
{[%clk 0:01:09.6]} 36... Qxf1 {[%clk 0:00:48.3]} 37. Qf6+ {[%clk 0:01:10.4]}
37... Kg8 {[%clk 0:00:49.1]} 38. Qxf3 {[%clk 0:01:12.3]} 38... Ra1 {[%clk
0:00:49.5]} 39. Ne5 {[%clk 0:01:11.7]} 39... Qg1+ {[%clk 0:00:45.4]} 40. Kh3
{[%clk 0:01:12.2]} 40... Qh1+ {[%clk 0:00:45.3]} 41. Qxh1 {[%clk 0:01:13.8]}
41... Rxh1+ {[%clk 0:00:47.2]} 42. Kg2 {[%clk 0:01:15.7]} 42... Rd1 {[%clk
0:00:46.7]} 43. Nc4 {[%clk 0:01:14.2]} 43... Rb1 {[%clk 0:00:41.4]} 44. Kf3
{[%clk 0:01:13.9]} 44... f6 {[%clk 0:00:37.6]} 45. Ke3 {[%clk 0:01:14.1]} 45...
h5 {[%clk 0:00:38.5]} 46. Kd3 {[%clk 0:01:11.1]} 46... g5 {[%clk 0:00:39.7]} 47.
Kc3 {[%clk 0:01:10.3]} 47... h4 {[%clk 0:00:40.3]} 48. gxh4 {[%clk 0:01:12.2]}
48... gxh4 {[%clk 0:00:42.2]} 49. Ne3 {[%clk 0:01:04.3]} 49... f5 {[%clk
0:00:41]} 0-1

[Event "*** Titled Tuesday Blitz"]
[Site "Chess.com"]
[Date "2019.09.03"]
[Round "9"]
[White "LastHeroJr"]
[Black "nitpicker"]
[Result "0-1"]
[WhiteElo "2488"]
[BlackElo "2264"]
[TimeControl "180+2"]
[EndTime "17:07:39 PDT"]
[Termination "nitpicker won by checkmate"]

1. e4 {[%clk 0:02:58.7]} 1... e5 {[%clk 0:02:58.5]} 2. Nf3 {[%clk 0:02:59.7]}
2... Nc6 {[%clk 0:02:59.5]} 3. Bc4 {[%clk 0:03:00.9]} 3... Bc5 {[%clk
0:02:59.4]} 4. b4 {[%clk 0:03:02.4]} 4... Bxb4 {[%clk 0:03:00.6]} 5. c3 {[%clk
0:03:03.9]} 5... Bd6 {[%clk 0:03:01.4]} 6. d4 {[%clk 0:03:04]} 6... Qe7 {[%clk
0:03:01.8]} 7. O-O {[%clk 0:03:03.8]} 7... b6 {[%clk 0:03:02.6]} 8. Nbd2 {[%clk
0:02:53.4]} 8... Bb7 {[%clk 0:03:00.8]} 9. Re1 {[%clk 0:02:50.6]} 9... f6 {[%clk
0:02:43]} 10. Nf1 {[%clk 0:02:37.9]} 10... O-O-O {[%clk 0:02:39.9]} 11. Ne3
{[%clk 0:02:37.8]} 11... g6 {[%clk 0:02:34.9]} 12. Bd5 {[%clk 0:02:25]} 12...
Qg7 {[%clk 0:02:29.6]} 13. Nc4 {[%clk 0:01:40.8]} 13... Nge7 {[%clk 0:02:21.5]}
14. a4 {[%clk 0:01:14.7]} 14... Nxd5 {[%clk 0:01:47.8]} 15. exd5 {[%clk
0:01:16.6]} 15... Ne7 {[%clk 0:01:48.6]} 16. Nxd6+ {[%clk 0:01:00.8]} 16... cxd6
{[%clk 0:01:50.5]} 17. c4 {[%clk 0:01:02.3]} 17... Kc7 {[%clk 0:01:45.6]} 18. a5
{[%clk 0:01:02.8]} 18... Ra8 {[%clk 0:01:41.2]} 19. a6 {[%clk 0:00:52.6]} 19...
Bc8 {[%clk 0:01:37.7]} 20. Qc2 {[%clk 0:00:48.5]} 20... h5 {[%clk 0:00:51]} 21.
c5 {[%clk 0:00:48.6]} 21... bxc5 {[%clk 0:00:43]} 22. dxc5 {[%clk 0:00:49.4]}
22... dxc5 {[%clk 0:00:36.2]} 23. d6+ {[%clk 0:00:34.1]} 23... Kxd6 {[%clk
0:00:33.4]} 24. Rd1+ {[%clk 0:00:35]} 24... Ke6 {[%clk 0:00:26.6]} 25. Qxc5
{[%clk 0:00:35]} 25... d5 {[%clk 0:00:23.4]} 26. Rxd5 {[%clk 0:00:22.5]} 26...
Nxd5 {[%clk 0:00:21]} 27. Qc6+ {[%clk 0:00:23.6]} 27... Kf7 {[%clk 0:00:20.2]}
28. Qxd5+ {[%clk 0:00:20.9]} 28... Be6 {[%clk 0:00:20.2]} 29. Qb7+ {[%clk
0:00:22.1]} 29... Kg8 {[%clk 0:00:17.2]} 30. Qxa8+ {[%clk 0:00:22.8]} 30... Kh7
{[%clk 0:00:19.1]} 31. Qb7 {[%clk 0:00:21.5]} 31... Bf7 {[%clk 0:00:17.2]} 32.
Qxa7 {[%clk 0:00:18.2]} 32... g5 {[%clk 0:00:18.5]} 33. Qe3 {[%clk 0:00:19]}
33... Rd8 {[%clk 0:00:17.5]} 34. Bb2 {[%clk 0:00:17.7]} 34... Bd5 {[%clk
0:00:17]} 35. a7 {[%clk 0:00:18.3]} 35... Ba8 {[%clk 0:00:17.2]} 36. Nd2 {[%clk
0:00:19]} 36... Qb7 {[%clk 0:00:17.3]} 37. Bc3 {[%clk 0:00:16.1]} 37... Qxg2#
{[%clk 0:00:17.5]} 0-1

[Event "*** Titled Tuesday Blitz"]
[Site "Chess.com"]
[Date "2019.09.03"]
[Round "9"]
[White "IMRosen"]
[Black "TomPolgar"]
[Result "1-0"]
[WhiteElo "2575"]
[BlackElo "2336"]
[TimeControl "180+2"]
[EndTime "17:07:41 PDT"]
[Termination "IMRosen won on time"]

1. e4 {[%clk 0:03:01.5]} 1... c5 {[%clk 0:02:55.5]} 2. Nc3 {[%clk 0:03:02.1]}
2... Nc6 {[%clk 0:02:56.4]} 3. Bb5 {[%clk 0:03:03.5]} 3... Nd4 {[%clk
0:02:54.4]} 4. Nf3 {[%clk 0:03:05]} 4... g6 {[%clk 0:02:43.7]} 5. O-O {[%clk
0:02:58.5]} 5... Bg7 {[%clk 0:02:34.4]} 6. Nxd4 {[%clk 0:02:58.8]} 6... cxd4
{[%clk 0:02:35.4]} 7. Ne2 {[%clk 0:03:00.1]} 7... a6 {[%clk 0:02:29.6]} 8. Bd3
{[%clk 0:03:00.5]} 8... d6 {[%clk 0:02:24.7]} 9. c3 {[%clk 0:03:01]} 9... dxc3
{[%clk 0:02:24.3]} 10. dxc3 {[%clk 0:03:02.9]} 10... Nf6 {[%clk 0:02:25.1]} 11.
h3 {[%clk 0:03:02]} 11... O-O {[%clk 0:02:25.6]} 12. a4 {[%clk 0:03:01.2]} 12...
b6 {[%clk 0:02:18]} 13. Nd4 {[%clk 0:02:52.3]} 13... Bb7 {[%clk 0:02:13.6]} 14.
Qe2 {[%clk 0:02:53.1]} 14... Qc7 {[%clk 0:01:58.8]} 15. Re1 {[%clk 0:02:39.2]}
15... Nd7 {[%clk 0:01:46.8]} 16. Bc2 {[%clk 0:02:24.8]} 16... Rac8 {[%clk
0:01:41.8]} 17. Be3 {[%clk 0:02:18.8]} 17... Ne5 {[%clk 0:01:37.5]} 18. Rad1
{[%clk 0:02:08.3]} 18... Qc4 {[%clk 0:01:17.7]} 19. Qd2 {[%clk 0:01:54]} 19...
Qc7 {[%clk 0:01:10.5]} 20. Bh6 {[%clk 0:01:44.1]} 20... Nc4 {[%clk 0:01:04.5]}
21. Qc1 {[%clk 0:01:44.8]} 21... Bxh6 {[%clk 0:00:44.4]} 22. Qxh6 {[%clk
0:01:46.7]} 22... Nxb2 {[%clk 0:00:45.2]} 23. Nf3 {[%clk 0:01:42.9]} 23... f6
{[%clk 0:00:33.2]} 24. Rc1 {[%clk 0:01:06.9]} 24... Nc4 {[%clk 0:00:23.5]} 25.
Nd4 {[%clk 0:01:04.7]} 25... Qd7 {[%clk 0:00:13.9]} 26. Bb3 {[%clk 0:01:05.1]}
26... Kh8 {[%clk 0:00:06.4]} 27. Rcd1 {[%clk 0:00:52.8]} 27... b5 {[%clk
0:00:06.7]} 28. axb5 {[%clk 0:00:50.5]} 28... axb5 {[%clk 0:00:08.6]} 29. Rd3
{[%clk 0:00:51.6]} 29... Rg8 {[%clk 0:00:07.3]} 30. Rg3 {[%clk 0:00:50.5]} 30...
Rg7 {[%clk 0:00:08.5]} 31. Nf5 {[%clk 0:00:47.7]} 31... Rgg8 {[%clk 0:00:06.7]}
32. Nh4 {[%clk 0:00:48.6]} 32... Ne5 {[%clk 0:00:05.8]} 33. f4 {[%clk
0:00:39.1]} 33... Nc4 {[%clk 0:00:02.9]} 34. Nxg6+ {[%clk 0:00:38.8]} 34... Rxg6
{[%clk 0:00:02.9]} 35. Rxg6 {[%clk 0:00:40.7]} 35... e5 {[%clk 0:00:03.4]} 36.
Rxf6 {[%clk 0:00:40.1]} 36... Qg7 {[%clk 0:00:03.3]} 37. Bxc4 {[%clk 0:00:36.1]}
37... Rxc4 {[%clk 0:00:02.7]} 38. Qxg7+ {[%clk 0:00:35.6]} 38... Kxg7 {[%clk
0:00:02.9]} 39. Rxd6 {[%clk 0:00:37.5]} 39... Bc6 {[%clk 0:00:02.4]} 40. Ra1
{[%clk 0:00:36.2]} 40... Bxe4 {[%clk 0:00:02.1]} 41. Ra7+ {[%clk 0:00:37.2]} 1-0